[Event "Niedersachsen-ch Meister 2024"]
[Site "Verden Aller"]
[Date "2024.01.07"]
[Round "7.7"]
[White "von Mettenheim, Johannes"]
[Black "Heinemann, Ernst"]
[Result "1-0"]
[ECO "A57"]
[WhiteElo "2284"]
[BlackElo "2033"]
[Annotator "RC"]
[PlyCount "49"]
[EventDate "2024.01.01"]
[EventType "swiss"]
[EventCountry "GER"]
[SourceTitle "playchess.com"]
[Source "ChessBase"]
[SourceQuality "1"]
[TimeControl "40/5400+30:1800+30"]

1. d4 {[%emt 0:00:02]} Nf6 {[%emt 0:00:10]} 2. c4 {[%emt 0:00:04]} c5 {[%emt 0:00:05]} 3. d5 {[%emt 0:00:04]} b5 {[%emt 0:00:05]} 4. cxb5 {[%emt 0:00:43]} a6 {[%emt 0:00:06]} 5. e3 {[%emt 0:00:28]} axb5 {[%emt 0:00:29]} 6. Bxb5 {[%emt 0:00:07]} Qa5+ {[%emt 0:00:39]} 7. Nc3 {[%emt 0:00:05]} Bb7 {[%emt 0:00:33]} 8. Bd2 {[%emt 0:01:30]} Qb6 {[%emt 0:00:36]} 9. Nf3 {[%emt 0:03:11]} Nxd5 {[%emt 0:03:35]} 10. a4 {[%emt 0:00:04]} Nb4 {[%emt 0:04:53]} 11. O-O {[%emt 0:01:35]} e6 {[%emt 0:07:40]} 12. e4 {[%emt 0:00:48]} Be7 {[%emt 0:02:42]} 13. Ne5 {[%emt 0:01:57]} O-O {[%emt 0:03:28]} 14. Bf4 {[%emt 0:01:37]} d5 {[%emt 0:00:54]} 15. exd5 {[%emt 0:01:07]} exd5 {[%emt 0:05:26]} 16. Qg4 {[%emt 0:05:29]} Bf6 {[%emt 0:07:14]} 17. Qg3 {[%emt 0:07:45]} d4 {[%emt 0:13:17]} 18. Nc4 {[%emt 0:01:40]} Qd8 {[%emt 0:03:28]} 19. Bc7 {[%emt 0:05:20]} Bh4 {[%emt 0:07:55]} 20. Bxd8 {[%emt 0:01:22]} Bxg3 {[%emt 0:00:05]} 21. Be7 {[%emt 0:00:14]} dxc3 {[%emt 0:01:21]} 22. fxg3 {[%emt 0:04:53]} Nc2 {[%emt 0:01:21]} 23. Rad1 {[%emt 0:09:32]} Nc6 {[%emt 0:03:35]} 24. Bxf8 {[%emt 0:00:21]} Kxf8 {[%emt 0:00:56]} 25. Rd7 {[%emt 0:00:42]} 1-0

[Event "Niedersachsen-ch Meister 2024"]
[Site "Verden Aller"]
[Date "2024.01.07"]
[Round "7.8"]
[White "Bargsten, Justus"]
[Black "Evering, Soeren"]
[Result "1-0"]
[ECO "E04"]
[WhiteElo "2216"]
[BlackElo "2034"]
[Annotator "RC"]
[PlyCount "119"]
[EventDate "2024.01.01"]
[EventType "swiss"]
[EventCountry "GER"]
[SourceTitle "playchess.com"]
[Source "ChessBase"]
[SourceQuality "1"]
[TimeControl "40/5400+30:1800+30"]

1. d4 {[%emt 1:31:00]} Nf6 {[%emt 0:01:36]} 2. c4 {[%emt 0:00:00]} e6 {[%emt 0:00:14]} 3. g3 {[%emt 0:00:00]} d5 {[%emt 0:01:34]} 4. Bg2 {[%emt 0:00:00]} Bb4+ {[%emt 0:00:33]} 5. Nd2 {[%emt 0:00:00]} O-O {[%emt 0:01:13]} 6. Ngf3 {[%emt 0:00:00]} dxc4 {[%emt 0:01:13]} 7. Qc2 {[%emt 0:00:00]} a5 {[%emt 0:01:45]} 8. a3 {[%emt 0:00:00]} Be7 {[%emt 0:05:09]} 9. Nxc4 {[%emt 0:00:00]} b6 {[%emt 0:07:59]} 10. Bf4 {[%emt 0:00:00]} Nd5 {[%emt 0:02:09]} 11. Bd2 {[%emt 0:00:00]} Bb7 {[%emt 0:07:49]} 12. O-O {[%emt 0:00:00]} Nf6 {[%emt 0:06:06]} 13. Rad1 {[%emt 0:00:00]} Nbd7 {[%emt 0:03:07]} 14. Nce5 {[%emt 0:00:00]} Be4 {[%emt 0:08:52]} 15. Qa4 {[%emt 0:00:00]} Qe8 {[%emt 0:14:42]} 16. Bg5 {[%emt 0:00:00]} Nxe5 {[%emt 0:02:09]} 17. Qxe8 {[%emt 0:00:00]} Rfxe8 {[%emt 0:00:54]} 18. Nxe5 {[%emt 0:00:00]} Bxg2 {[%emt 0:00:37]} 19. Kxg2 {[%emt 0:00:00]} Nd5 {[%emt 0:06:39]} 20. Bxe7 {[%emt 0:00:00]} Nxe7 {[%emt 0:26:10]} 21. Rc1 {[%emt 0:00:00]} f6 {[%emt 0:00:00]} 22. Nd3 {[%emt 0:00:00]} c6 {[%emt 0:00:00]} 23. Rc3 {[%emt 0:00:00]} Red8 {[%emt 0:00:00]} 24. e3 {[%emt 0:00:00]} Kf7 {[%emt 0:00:00]} 25. Rfc1 {[%emt 0:00:00]} Ke8 {[%emt 0:00:00]} 26. b3 {[%emt 0:00:00]} Kd7 {[%emt 0:00:00]} 27. Nb2 {[%emt 0:00:00]} Kc7 {[%emt 0:00:00]} 28. h4 {[%emt 0:00:00]} Kb7 {[%emt 0:00:00]} 29. Nd3 {[%emt 0:00:00]} Rd6 {[%emt 0:00:00]} 30. g4 {[%emt 0:00:00]} Rf8 {[%emt 0:01:47]} 31. Nb2 {[%emt 0:00:00]} h5 {[%emt 0:00:55]} 32. g5 {[%emt 0:00:00]} fxg5 {[%emt 0:01:18]} 33. hxg5 {[%emt 0:00:00]} Rf5 {[%emt 0:00:18]} 34. f4 {[%emt 0:00:00]} b5 {[%emt 0:01:30]} 35. Kf3 {[%emt 0:00:00]} Rf8 {[%emt 0:01:01]} 36. Nd3 {[%emt 0:00:00]} Rc8 {[%emt 0:00:37]} 37. Rc5 {[%emt 0:00:00]} Nd5 {[%emt 0:00:30]} 38. a4 {[%emt 0:00:00]} Nc7 {[%emt 0:00:31]} 39. axb5 {[%emt 0:00:00]} Nxb5 {[%emt 0:00:27]} 40. Re5 {[%emt 0:00:00]} Kb6 {[%emt 0:01:06]} 41. Nc5 {[%emt 0:14:37]} Nc7 {[%emt 0:04:29]} 42. g6 {[%emt 0:00:00]} Rd5 {[%emt 0:02:40]} 43. Rh1 {[%emt 0:00:00]} Rxe5 {[%emt 0:00:34]} 44. fxe5 {[%emt 0:00:00]} Rf8+ {[%emt 0:03:52]} 45. Ke4 {[%emt 0:00:00]} Rh8 {[%emt 0:01:39]} 46. Kf4 {[%emt 0:00:00]} Rf8+ {[%emt 0:02:19]} 47. Kg5 {[%emt 0:00:00]} Rf5+ {[%emt 0:01:13]} 48. Kh4 {[%emt 0:00:00]} Rf3 {[%emt 0:02:33]} 49. Rh3 {[%emt 0:00:00]} Rf5 {[%emt 0:02:07]} 50. Nd7+ {[%emt 0:00:00]} Kb5 {[%emt 0:02:18]} 51. Nf6 {[%emt 0:00:00]} Nd5 {[%emt 0:06:04]} 52. Nxh5 {[%emt 0:00:00]} Ne7 {[%emt 0:00:13]} 53. Rg3 {[%emt 0:00:00]} Rf8 {[%emt 0:00:19]} 54. e4 {[%emt 0:00:00]} Rd8 {[%emt 0:00:19]} 55. Nxg7 {[%emt 0:00:00]} Rxd4 {[%emt 0:00:05]} 56. Kg5 {[%emt 0:00:00]} Rxe4 {[%emt 0:00:59]} 57. Kf6 {[%emt 0:00:00]} Nd5+ {[%emt 0:03:47]} 58. Kxe6 {[%emt 0:00:00]} Nf4+ {[%emt 0:00:30]} 59. Kf5 {[%emt 0:00:00]} Rd4 {[%emt 0:00:27]} 60. Ne6 {[%emt 0:00:00]} 1-0

[Event "Niedersachsen-ch Meister 2024"]
[Site "Verden Aller"]
[Date "2024.01.07"]
[Round "7.9"]
[White "Sauer, Tim"]
[Black "Bennemann, Ingmar"]
[Result "0-1"]
[ECO "D85"]
[WhiteElo "2126"]
[BlackElo "1971"]
[Annotator "RC"]
[PlyCount "84"]
[EventDate "2024.01.01"]
[EventType "swiss"]
[EventCountry "GER"]
[SourceTitle "playchess.com"]
[Source "ChessBase"]
[SourceQuality "1"]
[TimeControl "40/5400+30:1800+30"]

1. d4 {[%emt 0:00:03]} Nf6 {[%emt 1:31:00]} 2. c4 {[%emt 0:00:08]} g6 {[%emt 0:00:00]} 3. Nc3 {[%emt 0:00:10]} d5 {[%emt 0:00:00]} 4. cxd5 {[%emt 0:00:10]} Nxd5 {[%emt 0:00:00]} 5. Bd2 {[%emt 0:00:18]} Bg7 {[%emt 0:00:00]} 6. e4 {[%emt 0:00:12]} Nxc3 {[%emt 0:00:00]} 7. Bxc3 {[%emt 0:00:09]} Nd7 {[%emt 0:00:00]} 8. Bc4 {[%emt 0:02:25]} c5 {[%emt 0:00:00]} 9. Ne2 {[%emt 0:05:04]} O-O {[%emt 0:00:00]} 10. O-O {[%emt 0:16:31]} cxd4 {[%emt 0:00:00]} 11. Bxd4 {[%emt 0:01:05]} Ne5 {[%emt 0:00:00]} 12. Bb3 {[%emt 0:03:26]} Nc6 {[%emt 0:00:00]} 13. Bxg7 {[%emt 0:00:44]} Kxg7 {[%emt 0:00:00]} 14. Qc1 {[%emt 0:02:03]} e5 {[%emt 0:00:00]} 15. Bd5 {[%emt 0:15:37]} Bg4 {[%emt 0:00:00]} 16. f3 {[%emt 0:05:05]} Bd7 {[%emt 0:00:00]} 17. Qe3 {[%emt 0:06:09]} Rc8 {[%emt 0:00:00]} 18. a3 {[%emt 0:06:46]} b6 {[%emt 0:00:00]} 19. Rac1 {[%emt 0:01:40]} Qf6 {[%emt 0:00:00]} 20. Qb3 {[%emt 0:16:08]} Qg5 {[%emt 0:00:00]} 21. Kh1 {[%emt 0:01:53]} Nd4 {[%emt 0:00:00]} 22. Qd3 {[%emt 0:02:36]} Nxe2 {[%emt 0:00:00]} 23. Rxc8 {[%emt 0:00:17]} Nf4 {[%emt 0:00:00]} 24. Qd2 {[%emt 0:01:22]} Rxc8 {[%emt 0:00:00]} 25. g3 {[%emt 0:00:43]} Ne6 {[%emt 0:00:00]} 26. f4 {[%emt 0:00:45]} exf4 {[%emt 0:00:00]} 27. gxf4 {[%emt 0:00:08]} Qf6 {[%emt 0:07:19]} 28. f5 {[%emt 0:08:48]} Bc6 {[%emt 0:02:20]} 29. Bxc6 {[%emt 0:03:55]} Rxc6 {[%emt 0:00:20]} 30. Qg2 {[%emt 0:00:28]} Nd4 {[%emt 0:01:14]} 31. fxg6 {[%emt 0:00:34]} Qxg6 {[%emt 0:02:37]} 32. Qxg6+ {[%emt 0:00:30]} hxg6 {[%emt 0:00:08]} 33. Rd1 {[%emt 0:00:11]} Ne6 {[%emt 0:00:07]} 34. Rd7 {[%emt 0:00:38]} Rc7 {[%emt 0:00:11]} 35. Rd2 {[%emt 0:00:22]} Kf6 {[%emt 0:00:08]} 36. Kg2 {[%emt 0:00:06]} Ke5 {[%emt 0:00:18]} 37. Kf3 {[%emt 0:00:56]} Ng5+ {[%emt 0:00:18]} 38. Ke3 {[%emt 0:00:11]} Nxe4 {[%emt 0:00:13]} 39. Rd8 {[%emt 0:00:38]} Nf6 {[%emt 0:00:15]} 40. Rf8 {[%emt 0:00:43]} Re7 {[%emt 0:00:31]} 41. b3 {[%emt 0:30:35]} Ke6 {[%emt 0:04:15]} 42. h3 {[%emt 0:00:00]} Re8 {[%emt 0:00:18]} 0-1

[Event "Niedersachsen-ch Meister 2024"]
[Site "Verden Aller"]
[Date "2024.01.07"]
[Round "7.10"]
[White "Reimer, Philip"]
[Black "Mimkes, Antal"]
[Result "0-1"]
[ECO "B22"]
[WhiteElo "2152"]
[BlackElo "1823"]
[Annotator "RC"]
[PlyCount "120"]
[EventDate "2024.01.01"]
[EventType "swiss"]
[EventCountry "GER"]
[SourceTitle "playchess.com"]
[Source "ChessBase"]
[SourceQuality "1"]
[TimeControl "40/5400+30:1800+30"]

1. e4 {[%emt 0:00:13]} c5 {[%emt 0:00:24]} 2. Nf3 {[%emt 0:00:08]} Nc6 {[%emt 0:00:17]} 3. c3 {[%emt 0:00:12]} Nf6 {[%emt 0:00:32]} 4. e5 {[%emt 0:00:10]} Nd5 {[%emt 0:00:08]} 5. Bc4 {[%emt 0:00:04]} Nb6 {[%emt 0:00:33]} 6. Bb3 {[%emt 0:00:06]} d6 {[%emt 0:00:56]} 7. exd6 {[%emt 0:00:08]} exd6 {[%emt 0:00:40]} 8. d4 {[%emt 0:00:48]} cxd4 {[%emt 0:04:59]} 9. Nxd4 {[%emt 0:02:37]} d5 {[%emt 0:03:26]} 10. O-O {[%emt 0:01:40]} Bd6 {[%emt 0:01:43]} 11. Re1+ {[%emt 0:02:58]} Ne7 {[%emt 0:01:56]} 12. a4 {[%emt 0:08:17]} O-O {[%emt 0:07:16]} 13. a5 {[%emt 0:01:00]} Nc4 {[%emt 0:02:35]} 14. Bxc4 {[%emt 0:12:12]} dxc4 {[%emt 0:00:42]} 15. Bg5 {[%emt 0:03:35]} f6 {[%emt 0:02:44]} 16. Bh4 {[%emt 0:00:51]} Ng6 {[%emt 0:02:23]} 17. Bg3 {[%emt 0:00:50]} Bxg3 {[%emt 0:04:13]} 18. hxg3 {[%emt 0:00:09]} Ne5 {[%emt 0:01:41]} 19. Qc2 {[%emt 0:17:26]} Re8 {[%emt 0:06:56]} 20. Nd2 {[%emt 0:02:24]} Bg4 {[%emt 0:06:28]} 21. f4 {[%emt 0:13:43]} Nc6 {[%emt 0:10:14]} 22. Nxc6 {[%emt 0:03:23]} bxc6 {[%emt 0:01:38]} 23. Nxc4 {[%emt 0:02:37]} Qd7 {[%emt 0:04:28]} 24. Ne3 {[%emt 0:09:31]} Bh5 {[%emt 0:01:45]} 25. f5 {[%emt 0:11:19]} Re5 {[%emt 0:02:48]} 26. g4 {[%emt 0:00:52]} Rae8 {[%emt 0:01:14]} 27. Qf2 {[%emt 0:00:40]} Bf7 {[%emt 0:03:14]} 28. Nc2 {[%emt 0:00:18]} h6 {[%emt 0:02:24]} 29. Nd4 {[%emt 0:01:47]} Bc4 {[%emt 0:02:27]} 30. Rxe5 {[%emt 0:01:00]} Rxe5 {[%emt 0:00:15]} 31. b3 {[%emt 0:01:41]} Bf7 {[%emt 0:00:42]} 32. b4 {[%emt 0:00:27]} Re4 {[%emt 0:02:37]} 33. Qg3 {[%emt 0:02:36]} Rxd4 {[%emt 0:00:45]} 34. cxd4 {[%emt 0:00:12]} Qxd4+ {[%emt 0:00:23]} 35. Kh2 {[%emt 0:00:03]} Qxa1 {[%emt 0:00:18]} 36. Qb8+ {[%emt 0:00:04]} Kh7 {[%emt 0:00:10]} 37. Qxa7 {[%emt 0:00:05]} Qe5+ {[%emt 0:00:42]} 38. Kg1 {[%emt 0:00:45]} Bc4 {[%emt 0:04:45]} 39. Qf2 {[%emt 0:01:19]} Bd5 {[%emt 0:03:31]} 40. Qd2 {[%emt 0:01:04]} Qa1+ {[%emt 0:04:08]} 41. Kf2 {[%emt 0:01:32]} Qh1 {[%emt 0:01:30]} 42. Kg3 {[%emt 0:00:25]} Qf1 {[%emt 0:00:29]} 43. Kh2 {[%emt 0:01:36]} Bc4 {[%emt 0:03:48]} 44. Kg3 {[%emt 0:01:48]} Qb1 {[%emt 0:06:00]} 45. Qc3 {[%emt 0:01:23]} Qa2 {[%emt 0:01:10]} 46. Kh2 {[%emt 0:01:11]} Bd5 {[%emt 0:02:30]} 47. Qg3 {[%emt 0:00:07]} Qd2 {[%emt 0:00:45]} 48. a6 {[%emt 0:00:03]} Qa2 {[%emt 0:00:16]} 49. g5 {[%emt 0:00:57]} hxg5 {[%emt 0:02:17]} 50. Kg1 {[%emt 0:01:17]} Qa1+ {[%emt 0:04:27]} 51. Kf2 {[%emt 0:00:34]} Qxa6 {[%emt 0:08:29]} 52. Qh2+ {[%emt 0:00:15]} Kg8 {[%emt 0:00:01]} 53. Qb8+ {[%emt 0:00:08]} Kf7 {[%emt 0:00:21]} 54. Qc7+ {[%emt 0:00:15]} Ke8 {[%emt 0:00:10]} 55. Qxg7 {[%emt 0:00:28]} Qa2+ {[%emt 0:00:34]} 56. Ke3 {[%emt 0:01:37]} Qb3+ {[%emt 0:00:24]} 57. Ke2 {[%emt 0:00:12]} Qc2+ {[%emt 0:00:42]} 58. Ke3 {[%emt 0:00:16]} Qe4+ {[%emt 0:00:32]} 59. Kd2 {[%emt 0:00:17]} Qxg2+ {[%emt 0:00:19]} 60. Kc3 {[%emt 0:00:28]} Qf3+ {[%emt 0:00:46]} 0-1

[Event "Niedersachsen-ch Meister 2024"]
[Site "Verden Aller"]
[Date "2024.01.07"]
[Round "7.11"]
[White "Bundan, Edward"]
[Black "Hans, Julian"]
[Result "0-1"]
[ECO "C01"]
[WhiteElo "1706"]
[BlackElo "1925"]
[Annotator "RC"]
[PlyCount "76"]
[EventDate "2024.01.01"]
[EventType "swiss"]
[EventCountry "GER"]
[SourceTitle "playchess.com"]
[Source "ChessBase"]
[SourceQuality "1"]
[TimeControl "40/5400+30:1800+30"]

1. e4 {[%emt 0:00:02]} e6 {[%emt 0:00:26]} 2. d4 {[%emt 0:00:09]} d5 {[%emt 0:00:33]} 3. Bd3 {[%emt 0:01:48]} dxe4 {[%emt 0:02:23]} 4. Bxe4 {[%emt 0:00:47]} Nf6 {[%emt 0:00:09]} 5. Bf3 {[%emt 0:00:13]} c5 {[%emt 0:00:06]} 6. Ne2 {[%emt 0:00:07]} Nc6 {[%emt 0:00:13]} 7. c3 {[%emt 0:09:28]} cxd4 {[%emt 1:30:10]} 8. Nxd4 {[%emt 0:01:36]} Nxd4 {[%emt 0:00:00]} 9. Qxd4 {[%emt 0:00:51]} Qxd4 {[%emt 0:00:00]} 10. cxd4 {[%emt 0:00:02]} Nd5 {[%emt 0:00:00]} 11. a3 {[%emt 0:01:42]} Bd7 {[%emt 0:00:00]} 12. Nc3 {[%emt 0:01:44]} Bc6 {[%emt 0:00:00]} 13. Nxd5 {[%emt 1:18:31]} Bxd5 {[%emt 0:00:00]} 14. Bxd5 {[%emt 0:00:00]} exd5 {[%emt 0:00:00]} 15. O-O {[%emt 0:00:00]} Bd6 {[%emt 0:00:00]} 16. Bd2 {[%emt 0:00:00]} Kd7 {[%emt 0:00:00]} 17. Rfe1 {[%emt 0:00:00]} Rhe8 {[%emt 0:00:00]} 18. g3 {[%emt 0:00:00]} Rxe1+ {[%emt 0:00:00]} 19. Rxe1 {[%emt 0:00:00]} Re8 {[%emt 0:00:00]} 20. Rxe8 {[%emt 0:00:00]} Kxe8 {[%emt 0:00:00]} 21. f4 {[%emt 0:00:00]} Kd7 {[%emt 0:00:00]} 22. Kf2 {[%emt 0:00:00]} Kc6 {[%emt 0:00:00]} 23. Ke3 {[%emt 0:00:00]} Kb5 {[%emt 0:00:00]} 24. Kd3 {[%emt 0:00:00]} a5 {[%emt 0:00:00]} 25. Kc3 {[%emt 0:00:00]} a4 {[%emt 0:00:00]} 26. Be1 {[%emt 0:00:00]} Bc7 {[%emt 0:00:00]} 27. Kd3 {[%emt 0:00:00]} f5 {[%emt 0:00:00]} 28. Bd2 {[%emt 0:07:30]} Ba5 {[%emt 0:00:00]} 29. Bxa5 {[%emt 0:00:00]} Kxa5 {[%emt 0:00:00]} 30. Kc3 {[%emt 0:00:00]} b6 {[%emt 0:00:00]} 31. h3 {[%emt 0:00:00]} h5 {[%emt 0:00:00]} 32. Kd3 {[%emt 0:00:00]} b5 {[%emt 0:00:00]} 33. Kc2 {[%emt 0:00:00]} b4 {[%emt 0:00:00]} 34. h4 {[%emt 0:00:00]} Kb5 {[%emt 0:00:00]} 35. Kd3 {[%emt 0:00:00]} g6 {[%emt 0:00:00]} 36. Kd2 {[%emt 0:00:00]} bxa3 {[%emt 0:00:00]} 37. bxa3 {[%emt 0:00:00]} Kc4 {[%emt 0:00:00]} 38. Ke3 {[%emt 0:00:00]} Kc3 {[%emt 0:15:30]} 0-1

[Event "Niedersachsen-ch Meister 2024"]
[Site "Verden Aller"]
[Date "2024.01.07"]
[Round "7.12"]
[White "Aden, Tammo"]
[Black "Renner, Kai"]
[Result "1-0"]
[ECO "A83"]
[WhiteElo "2025"]
[BlackElo "2153"]
[Annotator "RC"]
[PlyCount "52"]
[EventDate "2024.01.01"]
[EventType "swiss"]
[EventCountry "GER"]
[SourceTitle "playchess.com"]
[Source "ChessBase"]
[SourceQuality "1"]
[TimeControl "40/5400+30:1800+30"]

1. d4 {[%emt 0:00:02]} f5 {[%emt 0:00:06]} 2. e4 {[%emt 0:00:19]} fxe4 {[%emt 0:00:11]} 3. Nc3 {[%emt 0:00:04]} Nf6 {[%emt 0:00:11]} 4. Bg5 {[%emt 0:00:05]} Nc6 {[%emt 0:00:31]} 5. d5 {[%emt 0:00:13]} Ne5 {[%emt 0:00:16]} 6. Qd4 {[%emt 0:00:05]} Nf7 {[%emt 0:00:14]} 7. Bxf6 {[%emt 0:00:30]} exf6 {[%emt 0:00:15]} 8. O-O-O {[%emt 0:00:37]} Be7 {[%emt 0:05:58]} 9. Qxe4 {[%emt 0:04:25]} Nd6 {[%emt 0:02:37]} 10. Qf3 {[%emt 0:05:35]} O-O {[%emt 0:02:05]} 11. Bd3 {[%emt 0:01:59]} f5 {[%emt 0:00:57]} 12. Nge2 {[%emt 0:03:10]} a6 {[%emt 0:03:04]} 13. g4 {[%emt 0:09:09]} Bh4 {[%emt 0:18:50]} 14. gxf5 {[%emt 0:14:58]} Nxf5 {[%emt 0:03:15]} 15. d6 {[%emt 0:12:42]} Nxd6 {[%emt 0:05:58]} 16. Qd5+ {[%emt 0:02:40]} Kh8 {[%emt 0:07:43]} 17. Rhg1 {[%emt 0:02:04]} Bxf2 {[%emt 0:13:35]} 18. Rg2 {[%emt 0:09:48]} Ne8 {[%emt 0:04:45]} 19. Ne4 {[%emt 0:03:37]} Be3+ {[%emt 0:02:21]} 20. Kb1 {[%emt 0:00:15]} Bh6 {[%emt 0:18:46]} 21. Qh5 {[%emt 0:04:07]} Nf6 {[%emt 0:02:10]} 22. Nxf6 {[%emt 0:00:08]} Rxf6 {[%emt 0:04:22]} 23. Nc3 {[%emt 0:02:49]} d6 {[%emt 0:03:50]} 24. Ne4 {[%emt 0:00:48]} Rf4 {[%emt 0:00:00]} 25. Ng5 {[%emt 0:02:05]} Qe7 {[%emt 0:00:00]} 26. Re2 {[%emt 0:01:40]} Be6 {[%emt 0:01:30]} 1-0

[Event "Niedersachsen-ch Meister 2024"]
[Site "Verden Aller"]
[Date "2024.01.07"]
[Round "7.13"]
[White "Muecke, Leonard"]
[Black "Oest, Thorsten"]
[Result "0-1"]
[ECO "B90"]
[WhiteElo "1694"]
[BlackElo "1981"]
[Annotator "RC"]
[PlyCount "82"]
[EventDate "2024.01.01"]
[EventType "swiss"]
[EventCountry "GER"]
[SourceTitle "playchess.com"]
[Source "ChessBase"]
[SourceQuality "1"]
[TimeControl "40/5400+30:1800+30"]

1. e4 {[%emt 0:00:05]} c5 {[%emt 0:00:06]} 2. Nf3 {[%emt 0:00:10]} d6 {[%emt 0:00:04]} 3. d4 {[%emt 0:00:08]} cxd4 {[%emt 0:00:06]} 4. Nxd4 {[%emt 0:00:05]} Nf6 {[%emt 0:00:05]} 5. f3 {[%emt 0:00:24]} e5 {[%emt 0:00:43]} 6. Nb3 {[%emt 0:00:15]} h5 {[%emt 0:03:17]} 7. Be2 {[%emt 0:06:43]} Be6 {[%emt 0:02:50]} 8. Nc3 {[%emt 0:08:43]} a6 {[%emt 0:04:37]} 9. Be3 {[%emt 0:05:09]} Nbd7 {[%emt 0:04:21]} 10. Qd2 {[%emt 0:10:23]} Be7 {[%emt 0:01:50]} 11. O-O {[%emt 0:01:59]} Rc8 {[%emt 0:06:13]} 12. Rad1 {[%emt 0:15:08]} O-O {[%emt 0:08:43]} 13. f4 {[%emt 0:03:00]} Ng4 {[%emt 0:11:58]} 14. Bxg4 {[%emt 0:01:58]} Bxg4 {[%emt 0:00:26]} 15. Rc1 {[%emt 0:03:45]} Nb6 {[%emt 0:03:16]} 16. h3 {[%emt 0:20:47]} Nc4 {[%emt 0:03:05]} 17. Qf2 {[%emt 0:00:21]} Nxe3 {[%emt 0:00:44]} 18. Qxe3 {[%emt 0:00:13]} exf4 {[%emt 0:00:18]} 19. Qa7 {[%emt 0:00:30]} Be6 {[%emt 0:09:24]} 20. Qxb7 {[%emt 0:02:37]} Bc4 {[%emt 0:00:20]} 21. Nd5 {[%emt 0:07:55]} Bh4 {[%emt 0:03:43]} 22. Rxf4 {[%emt 0:06:06]} Bxd5 {[%emt 0:01:31]} 23. Qxd5 {[%emt 0:00:50]} Bg5 {[%emt 0:00:18]} 24. g3 {[%emt 0:01:33]} Bxf4 {[%emt 0:00:36]} 25. gxf4 {[%emt 0:00:04]} Qh4 {[%emt 0:00:34]} 26. Qd3 {[%emt 0:02:07]} Qxf4 {[%emt 0:01:29]} 27. Rf1 {[%emt 0:00:07]} Qe5 {[%emt 0:02:27]} 28. c3 {[%emt 0:00:14]} Rce8 {[%emt 0:01:13]} 29. Nd2 {[%emt 0:00:16]} Re6 {[%emt 0:01:11]} 30. Kh1 {[%emt 0:00:22]} g6 {[%emt 0:05:15]} 31. Qxa6 {[%emt 0:02:09]} Qg3 {[%emt 0:04:21]} 32. Rf3 {[%emt 0:00:19]} Qe1+ {[%emt 0:00:07]} 33. Nf1 {[%emt 0:00:07]} Qxe4 {[%emt 0:00:32]} 34. Qd3 {[%emt 0:01:04]} Qa8 {[%emt 0:02:53]} 35. a3 {[%emt 0:00:46]} Rb8 {[%emt 0:01:07]} 36. b4 {[%emt 0:00:41]} Qxa3 {[%emt 0:01:16]} 37. Ne3 {[%emt 0:00:16]} Qc1+ {[%emt 0:03:47]} 38. Kg2 {[%emt 0:00:13]} Ra8 {[%emt 0:01:11]} 39. Nf5 {[%emt 0:00:21]} Ra2+ {[%emt 0:00:41]} 40. Rf2 {[%emt 0:00:34]} Rxf2+ {[%emt 0:00:28]} 41. Kxf2 {[%emt 0:30:06]} gxf5 {[%emt 0:30:15]} 0-1